fUST/lending_fUST_20250210
["ID","MTS","AMOUNT","RATE_DAILY","PERIOD"]
[352524224,1739151044419,-662.11,0.00011232,2]
[352524225,1739151044429,-500.0,0.00011232,2]
[352524226,1739151044438,-500.0,0.00011232,2]
[352524227,1739151044447,-2887.24,0.00011232,2]
[352524228,1739151044456,-502.3956308,0.00011232,2]
[352524229,1739151044465,-500.0,0.00011232,2]
[352524230,1739151044475,-500.0,0.00011232,2]
[352524231,1739151044484,-500.0,0.00011232,2]
[352524232,1739151044493,-500.0,0.00011232,2]
[352524233,1739151044503,-180.78568244,0.00011269,2]
[352524234,1739151044512,-500.0,0.00011369,2]
[352524235,1739151044521,-177.59,0.00011369,2]
[352524236,1739151044530,-500.0,0.00011369,2]
[352524237,1739151044539,-500.0,0.00011369,2]
[352524238,1739151044548,-500.0,0.00011369,2]
[352524239,1739151044557,-808.3,0.00011369,2]
[352524240,1739151044566,-500.0,0.00011369,2]
[352524241,1739151044575,-500.0,0.00011369,2]
[352524242,1739151044585,-500.0,0.00011369,2]
[352524243,1739151044594,-500.0,0.00011369,2]
[352524244,1739151044680,-500.0,0.00011369,2]
[352524245,1739151044690,-500.0,0.00011369,2]
[352524246,1739151044699,-500.0,0.00011369,2]
[352524247,1739151044708,-500.0,0.00011369,2]
[352524248,1739151044717,-500.0,0.00011369,2]
[352524249,1739151044728,-990.28,0.00011369,2]
[352524250,1739151044737,-500.0,0.00011369,2]
[352524251,1739151044746,-157.62,0.00011369,2]
[352524252,1739151044755,-500.0,0.00011369,2]
[352524253,1739151044765,-500.0,0.00011369,2]
[352524254,1739151044774,-500.0,0.00011369,2]
[352524255,1739151044783,-500.0,0.00011369,2]
[352524256,1739151044792,-500.0,0.00011369,2]
[352524257,1739151044801,-500.0,0.00011369,2]
[352524258,1739151044811,-500.0,0.00011369,2]
[352524259,1739151044820,-500.0,0.00011369,2]
[352524260,1739151044829,-500.0,0.00011369,2]
[352524261,1739151044838,-500.0,0.00011369,2]
[352524262,1739151044848,-500.0,0.00011369,2]
[352524263,1739151044859,-500.0,0.00011369,2]
[352524264,1739151044870,-501.8,0.00011369,2]
[352524265,1739151044879,-521.51,0.00011369,2]
[352524266,1739151044889,-500.0,0.00011369,2]
[352524267,1739151044898,-500.0,0.00011369,2]
[352524268,1739151044908,-500.0,0.00011369,2]
[352524269,1739151044917,-500.0,0.00011369,2]
[352524270,1739151044926,-1758.43,0.00011369,2]
[352524271,1739151044939,-500.0,0.00011369,2]
[352524272,1739151044949,-500.0,0.00011369,2]
[352524273,1739151044958,-500.0,0.00011369,2]
[352524274,1739151044968,-500.0,0.00011369,2]
[352524275,1739151044977,-159.88,0.00011369,2]
[352524276,1739151044986,-445.96344938,0.00011369,2]
[352524277,1739151044996,-500.0,0.00011369,2]
[352524278,1739151045006,-500.0,0.00011369,2]
[352524279,1739151045014,-515.56,0.00011369,2]
[352524280,1739151045024,-500.0,0.00011369,2]
[352524281,1739151045033,-500.0,0.00011369,2]
[352524282,1739151045042,-500.0,0.00011369,2]
[352524283,1739151045051,-500.0,0.00011369,2]
[352524284,1739151045060,-500.0,0.00011369,2]
[352524285,1739151045069,-216.18376027,0.00011369,2]
[352524286,1739151045078,-500.0,0.00011369,2]
[352524287,1739151045088,-3404.15,0.00011369,2]
[352524288,1739151045097,-500.0,0.00011369,2]
[352524289,1739151045106,-8700.3,0.00011369,2]
[352524290,1739151045115,-738.06,0.00011369,2]
[352524291,1739151045124,-500.0,0.00011369,2]
[352524292,1739151045133,-1187.14,0.00011369,2]
[352524293,1739151045143,-3219.97,0.00011369,2]
[352524294,1739151045155,-500.0,0.00011369,2]
[352524295,1739151045165,-584.62,0.00011369,2]
[352524296,1739151045175,-1808.21,0.00011369,2]
[352524297,1739151045186,-500.0,0.00011369,2]
[352524298,1739151045199,-3658.6,0.00011369,2]
[352524299,1739151045211,-1029.68,0.00011369,2]
[352524300,1739151045220,-500.0,0.00011369,2]
[352524301,1739151045230,-500.0,0.00011369,2]
[352524302,1739151045239,-500.0,0.00011369,2]
[352524303,1739151045249,-500.0,0.00011369,2]
[352524304,1739151045259,-3294.42,0.00011369,2]
[352524305,1739151045268,-675.69,0.00011369,2]
[352524306,1739151045278,-1215.15,0.00011369,2]
[352524307,1739151045287,-500.0,0.00011369,2]
[352524308,1739151045296,-500.0,0.00011369,2]
[352524309,1739151045307,-500.0,0.00011369,2]
[352524310,1739151045317,-500.0,0.00011369,2]
[352524311,1739151045326,-500.0,0.00011369,2]
[352524312,1739151045335,-500.0,0.00011369,2]
[352524313,1739151045344,-1260.56,0.00011369,2]
[352524314,1739151045353,-11029.28,0.00011369,2]
[352524315,1739151045362,-1232.12,0.00011369,2]
[352524316,1739151045371,-1230.99,0.00011369,2]
[352524317,1739151045380,-564.06,0.00011369,2]
[352524318,1739151045390,-500.0,0.00011369,2]
[352524319,1739151045399,-187.464311,0.00011369,2]
[352524320,1739151045411,-500.0,0.00011369,2]
[352524321,1739151045420,-500.0,0.00011369,2]
[352524322,1739151045430,-500.0,0.00011369,2]
[352524323,1739151045439,-500.0,0.00011369,2]
[352524324,1739151045449,-503.72873296,0.00011369,2]
[352524325,1739151045459,-20893.0,0.00011369,2]
[352524326,1739151045468,-500.0,0.00011369,2]
[352524327,1739151045477,-500.0,0.00011369,2]
[352524328,1739151045486,-712.7,0.00011369,2]
[352524329,1739151045496,-1125.75,0.00011369,2]
[352524330,1739151045505,-1830.91,0.00011369,2]
[352524331,1739151045515,-2183.81,0.00011369,2]
[352524332,1739151045524,-600.83,0.00011369,2]
[352524333,1739151045533,-500.0,0.00011369,2]
[352524334,1739151045542,-624.76,0.00011369,2]
[352524335,1739151045552,-503.34,0.00011369,2]
[352524336,1739151045561,-978.35,0.00011369,2]
[352524337,1739151045571,-671.12,0.00011369,2]
[352524338,1739151045580,-931.46,0.00011369,2]
[352524339,1739151045589,-500.0,0.00011369,2]
[352524340,1739151045599,-636.85,0.00011369,2]
[352524341,1739151045609,-500.0,0.00011369,2]
[352524342,1739151045618,-500.0,0.00011369,2]
[352524343,1739151045628,-500.0,0.00011369,2]
[352524344,1739151045637,-237.0,0.00011369,2]
[352524345,1739151045646,-578.15,0.00011369,2]
[352524346,1739151045657,-937.2,0.00011369,2]
[352524347,1739151045666,-500.0,0.00011369,2]
[352524348,1739151045675,-805.57,0.00011369,2]
[352524349,1739151045685,-550.53,0.00011369,2]
[352524350,1739151045694,-500.0,0.00011369,2]
[352524351,1739151045703,-500.0,0.00011369,2]
[352524352,1739151045712,-1335.8,0.00011369,2]
[352524353,1739151045722,-500.0,0.00011369,2]
[352524354,1739151045731,-500.0,0.00011369,2]
[352524355,1739151045741,-500.0,0.00011369,2]
[352524356,1739151045751,-543.51,0.00011369,2]
[352524357,1739151045760,-662.11,0.00011369,2]
[352524358,1739151045770,-542.0610012,0.00011369,2]
[352524359,1739151045780,-500.0,0.00011369,2]
[352524360,1739151045789,-2887.24,0.00011369,2]
[352524361,1739151045799,-500.0,0.00011369,2]
[352524362,1739151045808,-500.0,0.00011369,2]
[352524363,1739151045818,-500.0,0.00011369,2]
[352524364,1739151045828,-500.0,0.00011369,2]
[352524365,1739151045837,-151.0,0.000114,2]
[352524366,1739151045846,-500.0,0.00011506,2]
[352524367,1739151045857,-500.0,0.00011506,2]
[352524368,1739151045867,-500.0,0.00011506,2]
[352524369,1739151045876,-808.3,0.00011506,2]
[352524370,1739151045886,-500.0,0.00011506,2]
[352524371,1739151045895,-500.0,0.00011506,2]
[352524372,1739151045906,-500.0,0.00011506,2]
[352524373,1739151045915,-500.0,0.00011506,2]
[352524374,1739151045925,-500.0,0.00011506,2]
[352524375,1739151045936,-500.0,0.00011506,2]
[352524376,1739151045945,-500.0,0.00011506,2]
[352524377,1739151045954,-500.0,0.00011506,2]
[352524378,1739151045963,-500.0,0.00011506,2]
[352524379,1739151045972,-990.28,0.00011506,2]
[352524380,1739151045981,-500.0,0.00011506,2]
[352524381,1739151045991,-500.0,0.00011506,2]
[352524382,1739151046000,-500.0,0.00011506,2]
[352524383,1739151046009,-500.0,0.00011506,2]
[352524384,1739151046018,-500.0,0.00011506,2]
[352524385,1739151046027,-500.0,0.00011506,2]
[352524386,1739151046036,-244.61,0.00011506,2]
[352524387,1739151046045,-500.0,0.00011506,2]
[352524388,1739151046055,-500.0,0.00011506,2]
[352524389,1739151046064,-500.0,0.00011506,2]
[352524390,1739151046073,-500.0,0.00011506,2]
[352524391,1739151046083,-500.0,0.00011506,2]
[352524392,1739151046092,-500.0,0.00011506,2]
[352524393,1739151046101,-521.51,0.00011506,2]
[352524394,1739151046110,-500.0,0.00011506,2]
[352524395,1739151046119,-500.0,0.00011506,2]
[352524396,1739151046128,-500.0,0.00011506,2]
[352524397,1739151046137,-1758.43,0.00011506,2]
[352524398,1739151046146,-6616.65682713,0.00011506,4]
[352524399,1739151046155,-500.0,0.00011506,2]
[352524400,1739151046165,-500.0,0.00011506,2]
[352524401,1739151046174,-265.10554976,0.00011506,2]
[352524402,1739151046183,-500.0,0.00011506,2]
[352524403,1739151046193,-500.0,0.00011506,2]
[352524404,1739151046202,-515.56,0.00011506,2]
[352524405,1739151046211,-500.0,0.00011506,2]
[352524406,1739151046221,-500.0,0.00011506,2]
[352524408,1739151046230,-500.0,0.00011506,2]
[352524410,1739151046239,-500.0,0.00011506,2]
[352524411,1739151046248,-500.0,0.00011506,2]
[352524412,1739151046257,-552.0525538,0.00011506,2]
[352524413,1739151046266,-3404.15,0.00011506,2]
[352524414,1739151046275,-500.0,0.00011506,2]
[352524415,1739151046284,-8700.3,0.00011506,2]
[352524416,1739151046294,-738.06,0.00011506,2]
[352524417,1739151046303,-500.0,0.00011506,2]
[352524418,1739151046312,-1187.14,0.00011506,2]
[352524420,1739151046321,-3219.97,0.00011506,2]
[352524421,1739151046331,-500.0,0.00011506,2]
[352524423,1739151046341,-584.62,0.00011506,2]
[352524424,1739151046355,-1808.21,0.00011506,2]
[352524425,1739151046365,-500.0,0.00011506,2]
[352524426,1739151046374,-3658.6,0.00011506,2]
[352524427,1739151046385,-1029.68,0.00011506,2]
[352524428,1739151046394,-500.0,0.00011506,2]
[352524429,1739151046404,-500.0,0.00011506,2]
[352524430,1739151046414,-500.0,0.00011506,2]
[352524431,1739151046423,-500.0,0.00011506,2]
[352524432,1739151046510,-3294.42,0.00011506,2]
[352524433,1739151046520,-675.69,0.00011506,2]
[352524434,1739151046529,-1215.15,0.00011506,2]
[352524435,1739151046539,-500.0,0.00011506,2]
[352524436,1739151046548,-500.0,0.00011506,2]
[352524437,1739151046557,-500.0,0.00011506,2]
[352524438,1739151046567,-500.0,0.00011506,2]
[352524439,1739151046576,-500.0,0.00011506,2]
[352524440,1739151046585,-572.2,0.00011506,2]
[352524441,1739151046595,-1260.56,0.00011506,2]
[352524442,1739151046604,-11029.28,0.00011506,2]
[352524443,1739151046614,-1232.12,0.00011506,2]
[352524444,1739151046624,-1230.99,0.00011506,2]
[352524445,1739151046634,-500.0,0.00011506,2]
[352524446,1739151046644,-500.0,0.00011506,2]
[352524447,1739151046653,-500.0,0.00011506,2]
[352524448,1739151046663,-500.0,0.00011506,2]
[352524449,1739151046672,-500.0,0.00011506,2]
[352524450,1739151046681,-20893.0,0.00011506,2]
[352524451,1739151046691,-500.0,0.00011506,2]
[352524452,1739151046701,-712.7,0.00011506,2]
[352524453,1739151046710,-259.49,0.00011506,2]
[352524454,1739151046720,-1125.75,0.00011506,2]
[352524455,1739151046730,-1830.91,0.00011506,2]
[352524457,1739151046740,-2183.81,0.00011506,2]
[352524458,1739151046749,-600.83,0.00011506,2]
[352524459,1739151046758,-500.0,0.00011506,2]
[352524460,1739151046768,-503.34,0.00011506,2]
[352524461,1739151046777,-978.35,0.00011506,2]
[352524462,1739151046786,-671.12,0.00011506,2]
[352524463,1739151046795,-931.46,0.00011506,2]
[352524464,1739151046805,-500.0,0.00011506,2]
[352524465,1739151046814,-636.85,0.00011506,2]
[352524466,1739151046823,-207.70306408,0.00011506,2]
[352524467,1739151046832,-500.0,0.00011506,2]
[352524468,1739151046842,-500.0,0.00011506,2]
[352524469,1739151046851,-578.15,0.00011506,2]
[352524470,1739151046864,-937.2,0.00011506,2]
[352524471,1739151046874,-239.94,0.00011506,2]
[352524472,1739151046883,-805.57,0.00011506,2]
[352524473,1739151046892,-550.53,0.00011506,2]
[352524474,1739151046903,-500.0,0.00011506,2]
[352524475,1739151046913,-500.0,0.00011506,2]
[352524476,1739151046923,-1335.8,0.00011506,2]
[352524477,1739151046933,-500.0,0.00011506,2]
[352524478,1739151046942,-500.0,0.00011506,2]
[352524479,1739151046951,-500.0,0.00011506,2]
[352524480,1739151046960,-543.51,0.00011506,2]
[352524481,1739151046969,-662.11,0.00011506,2]
[352524482,1739151046978,-500.0,0.00011506,2]
[352524483,1739151046987,-2887.24,0.00011506,2]
[352524484,1739151046997,-500.0,0.00011506,2]
[352524485,1739151047007,-500.0,0.00011506,2]
[352524486,1739151047016,-601.16877411,0.00011506,2]
[352524487,1739151047027,-500.0,0.00011506,2]
[352524488,1739151047036,-2835.55187557,0.00011591,2]
[352524489,1739151047046,-151.0,0.000116,2]
[352524490,1739151047055,-151.0,0.000116,2]
[352524491,1739151047066,-151.0,0.000116,2]
[352524492,1739151047075,-151.0,0.000116,2]
[352524493,1739151047085,-10000.0,0.00011614,2]
[352524494,1739151047095,-201.63,0.00011643,2]
[352524495,1739151047104,-500.0,0.00011643,2]
[352524496,1739151047114,-156.78076958,0.00011643,2]
[352524497,1739151047123,-808.3,0.00011643,2]
[352524498,1739151047133,-500.0,0.00011643,2]
[352524499,1739151047143,-500.0,0.00011643,2]
[352524500,1739151047153,-500.0,0.00011643,2]
[352524501,1739151047164,-500.0,0.00011643,2]
[352524502,1739151047173,-500.0,0.00011643,2]
[352524503,1739151047183,-500.0,0.00011643,2]
[352524504,1739151047193,-500.0,0.00011643,2]
[352524505,1739151047202,-500.0,0.00011643,2]
[352524506,1739151047214,-500.0,0.00011643,2]
[352524507,1739151047223,-990.28,0.00011643,2]
[352524508,1739151047233,-500.0,0.00011643,2]
[352524509,1739151047243,-500.0,0.00011643,2]
[352524510,1739151047252,-500.0,0.00011643,2]
[352524511,1739151047263,-500.0,0.00011643,2]
[352524512,1739151047272,-500.0,0.00011643,2]
[352524513,1739151047282,-500.0,0.00011643,2]
[352524514,1739151047292,-500.0,0.00011643,2]
[352524515,1739151047301,-500.0,0.00011643,2]
[352524516,1739151047311,-500.0,0.00011643,2]
[352524517,1739151047321,-500.0,0.00011643,2]
[352524518,1739151047332,-521.51,0.00011643,2]
[352524519,1739151047341,-268.49800783,0.00011643,2]
[352524520,1739151047351,-500.0,0.00011643,2]
[352524521,1739151047361,-500.0,0.00011643,2]
[352524522,1739151047371,-1758.43,0.00011643,2]
[352524523,1739151047387,-399.30898915,0.00011643,2]
[352524524,1739151047397,-500.0,0.00011643,2]
[352524525,1739151047408,-500.0,0.00011643,2]
[352524526,1739151047418,-500.0,0.00011643,2]
[352524527,1739151047428,-515.56,0.00011643,2]
[352524528,1739151047438,-500.0,0.00011643,2]
[352524529,1739151047449,-500.0,0.00011643,2]
[352524530,1739151047459,-500.0,0.00011643,2]
[352524531,1739151047470,-500.0,0.00011643,2]
[352524532,1739151047480,-500.0,0.00011643,2]
[352524533,1739151047490,-3404.15,0.00011643,2]
[352524534,1739151047500,-500.0,0.00011643,2]
[352524535,1739151047510,-8700.3,0.00011643,2]
[352524536,1739151047520,-738.06,0.00011643,2]
[352524537,1739151047531,-286.0,0.00011643,2]
[352524538,1739151047541,-1187.14,0.00011643,2]
[352524539,1739151047552,-3219.97,0.00011643,2]
[352524540,1739151047562,-500.0,0.00011643,2]
[352524541,1739151047572,-584.62,0.00011643,2]
[352524542,1739151047582,-1808.21,0.00011643,2]
[352524543,1739151047593,-500.0,0.00011643,2]
[352524544,1739151047603,-3658.6,0.00011643,2]
[352524545,1739151047626,-1029.68,0.00011643,2]
[352524546,1739151047639,-500.0,0.00011643,2]
[352524547,1739151047652,-503.58731381,0.00011643,2]
[352524548,1739151047665,-500.0,0.00011643,2]
[352524549,1739151047678,-500.0,0.00011643,2]
[352524550,1739151047690,-3294.42,0.00011643,2]
[352524551,1739151047700,-675.69,0.00011643,2]
[352524552,1739151047710,-1215.15,0.00011643,2]
[352524553,1739151047721,-500.0,0.00011643,2]
[352524554,1739151047733,-500.0,0.00011643,2]
[352524555,1739151047744,-500.0,0.00011643,2]
[352524556,1739151047755,-500.0,0.00011643,2]
[352524557,1739151047765,-500.0,0.00011643,2]
[352524558,1739151047775,-1260.56,0.00011643,2]
[352524559,1739151047787,-11029.28,0.00011643,2]
[352524560,1739151047798,-1232.12,0.00011643,2]
[352524561,1739151047809,-1230.99,0.00011643,2]
[352524562,1739151047821,-500.0,0.00011643,2]
[352524563,1739151047832,-185.57782604,0.00011643,2]
[352524564,1739151047845,-500.0,0.00011643,2]
[352524565,1739151047857,-500.0,0.00011643,2]
[352524566,1739151047868,-20893.0,0.00011643,2]
[352524567,1739151047879,-639.96339519,0.00011643,2]
[352524568,1739151047889,-712.7,0.00011643,2]
[352524569,1739151047899,-1125.75,0.00011643,2]
[352524570,1739151047913,-1830.91,0.00011643,2]
[352524571,1739151047924,-2183.81,0.00011643,2]
[352524572,1739151047936,-600.83,0.00011643,2]
[352524573,1739151047947,-500.0,0.00011643,2]
[352524574,1739151047958,-503.34,0.00011643,2]
[352524575,1739151047968,-978.35,0.00011643,2]
[352524576,1739151047977,-671.12,0.00011643,2]
[352524577,1739151047988,-931.46,0.00011643,2]
[352524578,1739151047999,-500.0,0.00011643,2]
[352524579,1739151048010,-636.85,0.00011643,2]
[352524580,1739151048020,-500.0,0.00011643,2]
[352524581,1739151048032,-500.0,0.00011643,2]
[352524582,1739151048044,-578.15,0.00011643,2]
[352524583,1739151048056,-937.2,0.00011643,2]
[352524584,1739151048067,-805.57,0.00011643,2]
[352524585,1739151048078,-550.53,0.00011643,2]
[352524586,1739151048089,-500.0,0.00011643,2]
[352524587,1739151048100,-500.0,0.00011643,2]
[352524588,1739151048111,-1335.8,0.00011643,2]
[352524589,1739151048122,-500.0,0.00011643,2]
[352524590,1739151048132,-500.0,0.00011643,2]
[352524591,1739151048142,-504.70113771,0.00011643,2]
[352524592,1739151048153,-662.11,0.00011643,2]
[352524593,1739151048167,-543.51,0.00011643,2]
[352524594,1739151048177,-264.17865557,0.00011643,2]
[352524595,1739151048188,-2887.24,0.00011643,2]
[352524596,1739151048199,-500.0,0.00011643,2]
[352524597,1739151048210,-500.0,0.00011643,2]
[352524598,1739151048220,-500.0,0.00011643,2]
[352524599,1739151048230,-151.0,0.000117,2]
[352524600,1739151048240,-151.0,0.000117,2]
[352524601,1739151048251,-808.3,0.0001178,2]
[352524602,1739151048262,-500.0,0.0001178,2]
[352524603,1739151048400,-500.0,0.0001178,2]
[352524604,1739151048413,-500.0,0.0001178,2]
[352524605,1739151048424,-500.0,0.0001178,2]
[352524606,1739151048435,-500.0,0.0001178,2]
[352524607,1739151048447,-500.0,0.0001178,2]
[352524608,1739151048458,-500.0,0.0001178,2]
[352524609,1739151048469,-500.0,0.0001178,2]
[352524610,1739151048481,-500.0,0.0001178,2]
[352524611,1739151048492,-990.28,0.0001178,2]
[352524612,1739151048504,-368.9837656,0.0001178,2]
[352524613,1739151048516,-500.0,0.0001178,2]
[352524614,1739151048527,-500.0,0.0001178,2]
[352524615,1739151048538,-500.0,0.0001178,2]
[352524616,1739151048548,-500.0,0.0001178,2]
[352524617,1739151048558,-500.0,0.0001178,2]
[352524618,1739151048568,-405.80076151,0.0001178,2]
[352524619,1739151048579,-500.0,0.0001178,2]
[352524620,1739151048590,-500.0,0.0001178,2]
[352524621,1739151048601,-500.0,0.0001178,2]
[352524622,1739151048612,-521.51,0.0001178,2]
[352524623,1739151048621,-516.72408088,0.0001178,2]
[352524624,1739151048631,-500.0,0.0001178,2]
[352524625,1739151048642,-1758.43,0.0001178,2]
[352524626,1739151048653,-500.0,0.0001178,2]
[352524627,1739151048667,-500.0,0.0001178,2]
[352524628,1739151048678,-500.0,0.0001178,2]
[352524629,1739151048689,-515.56,0.0001178,2]
[352524630,1739151048700,-515.95,0.0001178,2]
[352524631,1739151048710,-500.0,0.0001178,2]
[352524632,1739151048721,-500.0,0.0001178,2]
[352524633,1739151048731,-500.0,0.0001178,2]
[352524634,1739151048741,-500.0,0.0001178,2]
[352524635,1739151048752,-3404.15,0.0001178,2]
[352524636,1739151048763,-394.07672702,0.0001178,2]
[352524637,1739151048773,-8700.3,0.0001178,2]
[352524638,1739151048783,-738.06,0.0001178,2]
[352524639,1739151048795,-1187.14,0.0001178,2]
[352524640,1739151048806,-3219.97,0.0001178,2]
[352524641,1739151048817,-500.0,0.0001178,2]
[352524642,1739151048828,-584.62,0.0001178,2]
[352524643,1739151048839,-1808.21,0.0001178,2]
[352524644,1739151048850,-500.0,0.0001178,2]
[352524645,1739151048863,-3658.6,0.0001178,2]
[352524646,1739151048874,-1029.68,0.0001178,2]
[352524647,1739151048884,-500.0,0.0001178,2]
[352524648,1739151048896,-500.0,0.0001178,2]
[352524649,1739151048907,-500.0,0.0001178,2]
[352524650,1739151048920,-3294.42,0.0001178,2]
[352524651,1739151048931,-675.69,0.0001178,2]
[352524652,1739151048943,-1215.15,0.0001178,2]
[352524653,1739151048955,-500.0,0.0001178,2]
[352524654,1739151048966,-500.0,0.0001178,2]
[352524655,1739151048977,-500.0,0.0001178,2]
[352524656,1739151048989,-500.0,0.0001178,2]
[352524657,1739151049000,-500.0,0.0001178,2]
[352524658,1739151049011,-1260.56,0.0001178,2]
[352524659,1739151049022,-11029.28,0.0001178,2]
[352524660,1739151049033,-1232.12,0.0001178,2]
[352524661,1739151049043,-1230.99,0.0001178,2]
[352524662,1739151049054,-500.0,0.0001178,2]
[352524663,1739151049064,-500.0,0.0001178,2]
[352524664,1739151049074,-500.0,0.0001178,2]
[352524665,1739151049084,-20893.0,0.0001178,2]
[352524666,1739151049093,-712.7,0.0001178,2]
[352524667,1739151049103,-1125.75,0.0001178,2]
[352524668,1739151049113,-1830.91,0.0001178,2]
[352524669,1739151049122,-2183.81,0.0001178,2]
[352524670,1739151049132,-600.83,0.0001178,2]
[352524671,1739151049142,-500.0,0.0001178,2]
[352524672,1739151049153,-503.34,0.0001178,2]
[352524673,1739151049164,-978.35,0.0001178,2]
[352524674,1739151049174,-671.12,0.0001178,2]
[352524675,1739151049184,-931.46,0.0001178,2]
[352524676,1739151049194,-582.21,0.0001178,2]
[352524677,1739151049205,-636.85,0.0001178,2]
[352524678,1739151049216,-500.0,0.0001178,2]
[352524679,1739151049226,-500.0,0.0001178,2]
[352524680,1739151049235,-578.15,0.0001178,2]
[352524681,1739151049245,-937.2,0.0001178,2]
[352524682,1739151049255,-805.57,0.0001178,2]
[352524683,1739151049265,-550.53,0.0001178,2]
[352524684,1739151049274,-500.0,0.0001178,2]
[352524685,1739151049284,-500.0,0.0001178,2]
[352524686,1739151049294,-1335.8,0.0001178,2]
[352524687,1739151049305,-500.0,0.0001178,2]
[352524688,1739151049314,-500.0,0.0001178,2]
[352524689,1739151049324,-662.11,0.0001178,2]
[352524690,1739151049334,-543.51,0.0001178,2]
[352524691,1739151049346,-2887.24,0.0001178,2]
[352524692,1739151049356,-500.0,0.0001178,2]
[352524693,1739151049367,-500.0,0.0001178,2]
[352524694,1739151049377,-500.0,0.0001178,2]
[352524695,1739151049389,-151.0,0.000118,2]
[352524696,1739151049399,-2535.1090943,0.00011845,2]
[352524697,1739151049409,-151.0,0.000119,2]
[352524698,1739151049420,-808.3,0.00011917,2]
[352524699,1739151049430,-500.0,0.00011917,2]
[352524700,1739151049440,-500.0,0.00011917,2]
[352524701,1739151049450,-500.0,0.00011917,2]
[352524702,1739151049460,-500.0,0.00011917,2]
[352524703,1739151049471,-500.0,0.00011917,2]
[352524704,1739151049481,-500.0,0.00011917,2]
[352524705,1739151049491,-500.0,0.00011917,2]
[352524706,1739151049501,-500.0,0.00011917,2]
[352524707,1739151049511,-321.29460215,0.00011917,2]
[352524708,1739151049521,-990.28,0.00011917,2]
[352524709,1739151049531,-500.0,0.00011917,2]
[352524710,1739151049541,-523.3,0.00011917,2]
[352524711,1739151049552,-500.0,0.00011917,2]
[352524712,1739151049562,-500.0,0.00011917,2]
[352524713,1739151049572,-500.0,0.00011917,2]
[352524714,1739151049582,-500.0,0.00011917,2]
[352524715,1739151049591,-500.0,0.00011917,2]
[352524716,1739151049600,-500.0,0.00011917,2]
[352524717,1739151049610,-521.51,0.00011917,2]
[352524718,1739151049620,-500.0,0.00011917,2]
[352524719,1739151049630,-1758.43,0.00011917,2]
[352524720,1739151049640,-500.0,0.00011917,2]
[352524721,1739151049649,-500.0,0.00011917,2]
[352524722,1739151049659,-500.0,0.00011917,2]
[352524723,1739151049670,-515.56,0.00011917,2]
[352524724,1739151049679,-500.0,0.00011917,2]
[352524725,1739151049689,-500.0,0.00011917,2]
[352524726,1739151049699,-500.0,0.00011917,2]
[352524727,1739151049708,-500.0,0.00011917,2]
[352524728,1739151049717,-3404.15,0.00011917,2]